bitfinex/quotes_BTCUSD_20240727
["timestamp","ask_amount","ask_price","bid_price","bid_amount"]
[1722071016470,0.1428,68115.0,68109.0,0.000924]
[1722071016689,0.146815,68113.0,68109.0,0.147746]
[1722071016882,0.146817,68112.0,68109.0,0.000924]
[1722071017548,0.146817,68112.0,68109.0,0.147746]
[1722071017730,0.16985902,68112.0,68109.0,0.147746]
[1722071017934,0.146817,68112.0,68109.0,0.147746]
[1722071018166,0.146815,68113.0,68109.0,0.147746]
[1722071018354,0.146815,68113.0,68109.0,0.149746]
[1722071018553,0.146815,68113.0,68109.0,0.152746]
[1722071018701,0.146817,68112.0,68109.0,0.152746]
[1722071019343,0.146817,68112.0,68109.0,0.149746]
[1722071019545,0.146817,68112.0,68109.0,0.000924]
[1722071020034,0.16985207,68112.0,68109.0,0.001924]
[1722071020359,0.14682,68111.0,68109.0,0.000924]
[1722071020568,0.16985207,68112.0,68109.0,0.002924]
[1722071020783,0.02304211,68111.0,68109.0,0.002924]
[1722071021235,0.02304211,68111.0,68109.0,0.003924]
[1722071021431,0.16986111,68111.0,68109.0,0.006924]
[1722071022078,0.146821,68110.0,68109.0,0.003924]
[1722071022501,0.289621,68110.0,68109.0,0.007924]
[1722071022850,0.289621,68110.0,68109.0,0.004924]
[1722071024014,0.583263,68110.0,68109.0,0.001924]
[1722071024802,0.583263,68110.0,68109.0,0.000924]
[1722071025023,0.583263,68110.0,68109.0,0.002924]
[1722071025418,0.146821,68110.0,68109.0,0.000924]
[1722071025561,0.440463,68110.0,68109.0,0.000924]
[1722071025767,0.02304296,68110.0,68109.0,0.085624]
[1722071025983,0.02304296,68110.0,68109.0,0.230424]
[1722071028438,0.02304296,68110.0,68109.0,0.377247]
[1722071028643,0.02304296,68110.0,68109.0,0.230424]
[1722071029198,0.02304296,68110.0,68109.0,0.670893]
[1722071029412,0.02304296,68110.0,68109.0,0.964539]
[1722071031319,0.02304296,68110.0,68109.0,0.967539]
[1722071031733,0.02304296,68110.0,68109.0,0.971539]
[1722071038784,0.02304296,68110.0,68109.0,0.886839]
[1722071039024,0.02304296,68110.0,68109.0,0.154747]
[1722071039246,0.16986396,68110.0,68109.0,0.007924]
[1722071039466,0.31446396,68110.0,68109.0,0.007924]
[1722071039685,0.16764296,68110.0,68109.0,0.007924]
[1722071039906,0.23357643,68110.0,68109.0,0.007924]
[1722071040560,0.16764296,68110.0,68109.0,0.003924]
[1722071040762,0.2335723,68110.0,68109.0,0.000924]
[1722071040972,0.3803933,68110.0,68109.0,0.000924]
[1722071041664,0.6740353,68110.0,68109.0,0.000924]
[1722071041890,0.0889723,68110.0,68109.0,0.145724]
[1722071042103,0.02304296,68110.0,68109.0,1.58924212]
[1722071042318,0.02304296,68110.0,68109.0,1.88288812]
[1722071042533,0.02304296,68110.0,68109.0,1.87653412]
[1722071042752,0.00084,68119.0,68118.0,0.469842]
[1722071042962,0.00084,68119.0,68118.0,0.99295]
[1722071043177,0.00084,68119.0,68118.0,0.260934]
[1722071043385,0.00084,68119.0,68118.0,0.554542]
[1722071044235,0.00084,68119.0,68118.0,0.85915]
[1722071044666,0.00084,68119.0,68118.0,0.86015]
[1722071044884,0.00084,68119.0,68118.0,0.85415]
[1722071045321,0.00084,68119.0,68118.0,0.86115]
[1722071045528,0.00084,68119.0,68118.0,0.85415]
[1722071045735,0.00084,68119.0,68118.0,0.86215]
[1722071046148,0.02387877,68119.0,68118.0,0.85615]
[1722071046576,0.02387877,68119.0,68118.0,0.86315]
[1722071047426,0.02387877,68119.0,68118.0,1.156758]
[1722071047825,0.02387877,68119.0,68118.0,1.236858]
[1722071049568,0.02387877,68119.0,68118.0,1.300658]
[1722071050037,0.00084,68119.0,68118.0,1.300658]
[1722071050252,0.00084,68119.0,68118.0,1.42264912]
[1722071050477,0.00084,68119.0,68118.0,1.300658]
[1722071050905,0.00084,68119.0,68118.0,1.293658]
[1722071051123,0.00084,68119.0,68118.0,1.299658]
[1722071051581,0.00084,68119.0,68118.0,1.313658]
[1722071053289,0.02387835,68119.0,68118.0,1.313658]
[1722071054375,0.00084,68119.0,68118.0,1.313658]
[1722071055871,0.00084,68119.0,68118.0,1.228958]
[1722071056091,0.00084,68119.0,68118.0,1.313658]
[1722071057874,0.02387844,68119.0,68118.0,1.313658]
[1722071058525,0.02387844,68119.0,68118.0,0.87615]
[1722071058744,0.00084,68119.0,68118.0,0.87615]
[1722071059176,0.00084,68119.0,68118.0,0.497842]
[1722071059394,0.00084,68119.0,68118.0,0.582542]
[1722071060942,0.00084,68119.0,68118.0,0.87615]
[1722071061189,0.00084,68119.0,68118.0,0.93995]
[1722071062086,0.02387865,68119.0,68118.0,0.93995]
[1722071065852,0.00084,68119.0,68118.0,0.92595]
[1722071066081,0.00084,68119.0,68118.0,0.93695]
[1722071066306,0.00084,68119.0,68118.0,0.92295]
[1722071066723,0.00084,68119.0,68118.0,0.93295]
[1722071067750,0.00084,68119.0,68118.0,1.226558]
[1722071069255,0.02387873,68119.0,68118.0,1.226558]
[1722071069557,0.02387873,68119.0,68118.0,1.162758]
[1722071070126,0.00084,68119.0,68118.0,1.162758]
[1722071070736,0.07824,68119.0,68118.0,0.78445]
[1722071070937,0.07824,68119.0,68118.0,0.86915]
[1722071071314,0.07824,68119.0,68118.0,0.99114926]
[1722071072413,0.10127899,68119.0,68118.0,0.99114926]
[1722071072928,0.07824,68119.0,68118.0,0.99114926]
[1722071073664,0.07824,68119.0,68118.0,0.87701926]
[1722071073920,0.07824,68119.0,68118.0,0.99114926]
[1722071074146,0.07824,68119.0,68118.0,0.99115058]
[1722071074910,0.07824,68119.0,68118.0,0.99115059]
[1722071075835,0.10127924,68119.0,68118.0,0.99115059]
[1722071077154,0.07824,68119.0,68118.0,0.99115059]
[1722071077533,0.07824,68119.0,68118.0,0.86915]
[1722071077757,0.07824,68119.0,68118.0,0.99115059]
[1722071078812,0.07824,68119.0,68118.0,0.86915]
[1722071080396,0.10127916,68119.0,68118.0,0.86915]
[1722071081955,0.07824,68119.0,68118.0,0.86915]
[1722071084888,0.10127916,68119.0,68118.0,0.86915]
[1722071085294,0.07824,68119.0,68118.0,0.86915]
[1722071087883,0.00084,68119.0,68118.0,0.86915]
[1722071088558,0.02387907,68119.0,68118.0,0.86915]
[1722071089666,0.00084,68119.0,68118.0,0.86915]
[1722071092827,0.02387916,68119.0,68118.0,0.86915]
[1722071093259,0.00084,68119.0,68118.0,0.86915]
[1722071096371,0.00084,68119.0,68118.0,0.575542]
[1722071096578,0.02387918,68119.0,68118.0,0.575542]
[1722071096796,0.02387918,68119.0,68118.0,0.021]
[1722071097035,0.08487918,68119.0,68118.0,0.252504]
[1722071097872,0.08487918,68119.0,68118.0,0.021]
[1722071098082,0.16437918,68119.0,68118.0,0.01]
[1722071098319,0.14134,68119.0,68118.0,0.017]
[1722071099840,0.434943,68119.0,68118.0,0.01]
[1722071100059,0.95479514,68119.0,68118.0,0.01]
[1722071100274,0.96328086,68119.0,68118.0,0.015]
[1722071100455,0.90655681,68119.0,68118.0,0.015]
[1722071100624,0.90655681,68119.0,68118.0,0.005]
[1722071100864,0.90500261,68119.0,68118.0,0.012]
[1722071101453,0.90500261,68119.0,68118.0,0.005]
[1722071101651,0.90500261,68119.0,68118.0,0.009]
[1722071102267,1.00824734,68119.0,68118.0,0.009]
[1722071102628,0.89838816,68119.0,68118.0,0.009]
[1722071103077,0.89838816,68119.0,68118.0,0.004]
[1722071103445,0.90038816,68119.0,68118.0,0.004]
[1722071103625,0.440418,68117.0,68116.0,0.000924]
[1722071103879,0.519918,68117.0,68116.0,0.000924]
[1722071104096,0.0795,68117.0,68116.0,0.085624]
[1722071104520,0.226306,68117.0,68116.0,0.085624]
[1722071104762,0.0795,68117.0,68116.0,0.085624]
[1722071104973,0.226306,68117.0,68116.0,0.085624]
[1722071105178,0.293206,68117.0,68116.0,0.085624]
[1722071105361,0.586818,68117.0,68116.0,0.085624]
[1722071108697,0.586818,68117.0,68116.0,0.000924]
[1722071112809,0.293206,68117.0,68116.0,0.000924]
[1722071113415,0.1464,68117.0,68116.0,0.000924]
[1722071113661,0.0805,68117.0,68116.0,0.000924]
[1722071114747,0.08199625,68117.0,68116.0,0.000924]
[1722071115281,0.0805,68117.0,68116.0,0.000924]
[1722071115453,0.08146578,68117.0,68116.0,0.000924]
[1722071115665,0.10354115,68117.0,68116.0,0.000924]
[1722071116876,0.25034715,68117.0,68116.0,0.000924]
[1722071117576,0.54395915,68117.0,68116.0,0.000924]
[1722071118336,0.25034715,68117.0,68116.0,0.000924]
[1722071120212,0.227306,68117.0,68116.0,0.000924]
[1722071123354,0.25034754,68117.0,68116.0,0.000924]
[1722071124162,0.227306,68117.0,68116.0,0.000924]
[1722071125006,0.520918,68117.0,68116.0,0.000924]
[1722071127270,0.54395959,68117.0,68116.0,0.000924]
[1722071128872,0.520918,68117.0,68116.0,0.000924]
[1722071129704,0.52215676,68117.0,68116.0,0.000924]
[1722071129942,0.520918,68117.0,68116.0,0.000924]
[1722071130559,0.585618,68117.0,68116.0,0.000924]
[1722071131242,0.87923,68117.0,68116.0,0.000924]
[1722071131465,0.96703433,68117.0,68116.0,0.000924]
[1722071131665,0.99577816,68117.0,68116.0,0.000924]
[1722071131889,0.90797379,68117.0,68116.0,0.000924]
[1722071132112,1.22462808,68117.0,68116.0,0.000924]
[1722071132351,0.93101608,68117.0,68116.0,0.000924]
[1722071133516,0.90797379,68117.0,68116.0,0.000924]
[1722071133985,1.20158579,68117.0,68116.0,0.000924]
[1722071134238,0.90797379,68117.0,68116.0,0.000924]
[1722071135185,0.8807842,68117.0,68116.0,0.000924]
[1722071135410,0.90927508,68117.0,68116.0,0.000924]
[1722071135644,0.99559826,68117.0,68116.0,0.000924]
[1722071136242,0.96702154,68117.0,68116.0,0.000924]
[1722071136654,1.2836758,68117.0,68116.0,0.000924]
[1722071137033,1.26063354,68117.0,68116.0,0.000924]
[1722071137238,1.172842,68117.0,68116.0,0.000924]
[1722071138228,1.31581273,68117.0,68116.0,0.000924]
[1722071138451,1.31475381,68117.0,68116.0,0.000924]
[1722071139165,1.172842,68117.0,68116.0,0.000924]
[1722071139395,0.87923,68117.0,68116.0,0.000924]
[1722071140061,0.8807842,68117.0,68116.0,0.000924]
[1722071140285,0.90227211,68117.0,68116.0,0.000924]
[1722071141641,0.90318454,68117.0,68116.0,0.000924]
[1722071141850,0.96203754,68117.0,68116.0,0.000924]
[1722071142080,0.96112511,68117.0,68116.0,0.000924]
[1722071142299,1.07089735,68117.0,68116.0,0.000924]
[1722071145709,1.07095609,68117.0,68116.0,0.000924]
[1722071148621,1.05383988,68117.0,68116.0,0.000924]
[1722071148856,1.03079777,68117.0,68116.0,0.000924]
[1722071149073,1.03079416,68117.0,68116.0,0.000924]
[1722071152247,1.05383593,68117.0,68116.0,0.000924]
[1722071152602,1.05383131,68117.0,68116.0,0.000924]
[1722071155229,1.05467131,68117.0,68116.0,0.000924]
[1722071155445,1.0837327,68117.0,68116.0,0.000924]
[1722071156075,1.08384883,68117.0,68116.0,0.000924]
[1722071157319,1.01914883,68117.0,68116.0,0.000924]
[1722071157551,0.89791204,68117.0,68116.0,0.000924]
[1722071157754,0.95676504,68117.0,68116.0,0.000924]
[1722071159515,0.92759187,68117.0,68116.0,0.000924]
[1722071159746,0.9570372,68117.0,68116.0,0.000924]
[1722071159962,0.89818461,68117.0,68116.0,0.000924]
[1722071160167,0.95703761,68117.0,68116.0,0.000924]
[1722071160573,0.93399584,68117.0,68116.0,0.000924]
[1722071161211,0.93404134,68117.0,68116.0,0.000924]
[1722071162304,0.93404537,68117.0,68116.0,0.000924]
[1722071163438,0.95708717,68117.0,68116.0,0.000924]
[1722071165020,0.93404537,68117.0,68116.0,0.000924]
[1722071165662,0.9339375,68117.0,68116.0,0.000924]
[1722071165872,0.93394848,68117.0,68116.0,0.000924]
[1722071166284,0.824106,68117.0,68116.0,0.000924]
[1722071168313,0.8471478,68117.0,68116.0,0.000924]
[1722071168924,0.824106,68117.0,68116.0,0.000924]
[1722071169134,0.82423559,68117.0,68116.0,0.000924]
[1722071171850,0.84727739,68117.0,68116.0,0.000924]
[1722071172254,0.82423559,68117.0,68116.0,0.000924]
[1722071172722,0.82431638,68117.0,68116.0,0.000924]
[1722071172969,0.53070438,68117.0,68116.0,0.000924]
[1722071175513,0.55374611,68117.0,68116.0,0.000924]
[1722071175943,0.55377761,68117.0,68116.0,0.000924]
[1722071176353,0.49492461,68117.0,68116.0,0.000924]
[1722071177234,0.47188288,68117.0,68116.0,0.000924]
[1722071180527,0.49492461,68117.0,68116.0,0.000924]
[1722071180772,0.47188288,68117.0,68116.0,0.000924]
[1722071182683,0.442258,68117.0,68116.0,0.000924]
[1722071182881,0.47193935,68117.0,68116.0,0.000924]
[1722071184110,0.49498104,68117.0,68116.0,0.000924]
[1722071188391,0.47193935,68117.0,68116.0,0.000924]
[1722071189678,0.47190329,68117.0,68116.0,0.000924]
[1722071191346,0.49494498,68117.0,68116.0,0.000924]
[1722071193232,0.49497771,68117.0,68116.0,0.000924]
[1722071194814,0.49397771,68117.0,68116.0,0.000924]
[1722071195179,0.49597771,68117.0,68116.0,0.000924]
[1722071195595,0.47293602,68117.0,68116.0,0.000924]
[1722071195800,0.443258,68117.0,68116.0,0.000924]
[1722071197475,0.47087379,68117.0,68116.0,0.000924]
[1722071198950,0.49391574,68117.0,68116.0,0.000924]
[1722071199304,0.47087379,68117.0,68116.0,0.000924]
[1722071199939,0.443258,68117.0,68116.0,0.000924]
[1722071200311,0.73687,68117.0,68116.0,0.000924]
[1722071200658,0.443258,68117.0,68116.0,0.000924]
[1722071201750,0.73687,68117.0,68116.0,0.000924]
[1722071202601,0.75991195,68117.0,68116.0,0.000924]
[1722071203560,0.46629995,68117.0,68116.0,0.000924]
[1722071204002,0.75991195,68117.0,68116.0,0.000924]
[1722071205189,0.84131195,68117.0,68116.0,0.000924]
[1722071207262,0.90771195,68117.0,68116.0,0.000924]
[1722071207720,1.20132395,68117.0,68116.0,0.000924]
[1722071207918,1.30227276,68117.0,68116.0,0.000924]
[1722071208178,1.35132395,68117.0,68116.0,0.000924]
[1722071208362,1.30132395,68117.0,68116.0,0.000924]
[1722071208891,1.278282,68117.0,68116.0,0.000924]
[1722071210792,1.30374776,68117.0,68116.0,0.000924]
[1722071212150,1.32679014,68117.0,68116.0,0.000924]
[1722071214003,1.32688078,68117.0,68116.0,0.000924]
[1722071217500,1.32701403,68117.0,68116.0,0.000924]
[1722071218187,1.37701403,68117.0,68116.0,0.000924]
[1722071218435,1.5272736,68117.0,68116.0,0.000924]
[1722071218672,1.37701403,68117.0,68116.0,0.000924]
[1722071218926,1.32701403,68117.0,68116.0,0.000924]
[1722071220489,1.30132438,68117.0,68116.0,0.000924]
[1722071220723,1.32675523,68117.0,68116.0,0.000924]
[1722071221850,1.30371285,68117.0,68116.0,0.000924]
[1722071223243,1.278282,68117.0,68116.0,0.000924]
[1722071223460,1.30371487,68117.0,68116.0,0.000924]
[1722071226760,1.30364021,68117.0,68116.0,0.000924]
[1722071227156,1.30369174,68117.0,68116.0,0.000924]
[1722071228347,1.30373017,68117.0,68116.0,0.000924]
[1722071229827,1.32677227,68117.0,68116.0,0.000924]
[1722071230237,1.3013241,68117.0,68116.0,0.000924]
[1722071230469,1.34980822,68117.0,68116.0,0.000924]
[1722071231244,1.32676612,68117.0,68116.0,0.000924]
[1722071233681,1.30131813,68117.0,68116.0,0.000924]
[1722071233883,1.32963201,68117.0,68116.0,0.000924]
[1722071234532,1.35267411,68117.0,68116.0,0.000924]
[1722071234938,1.32963201,68117.0,68116.0,0.000924]
[1722071237216,1.30131813,68117.0,68116.0,0.000924]
[1722071237430,1.26319736,68117.0,68116.0,0.000924]
[1722071238236,1.2862395,68117.0,68116.0,0.000924]
[1722071240689,1.25796027,68117.0,68116.0,0.000924]
[1722071240896,1.28625454,68117.0,68116.0,0.000924]
[1722071242703,1.2632124,68117.0,68116.0,0.000924]
[1722071245897,1.2612124,68117.0,68116.0,0.000924]
[1722071246319,1.2642124,68117.0,68116.0,0.001924]
[1722071246519,1.2662124,68117.0,68116.0,0.002924]
[1722071247557,1.33868829,68117.0,68116.0,0.002924]
[1722071247769,1.37584619,68117.0,68116.0,0.001924]
[1722071247988,1.37784619,68117.0,68116.0,0.002924]
[1722071249052,1.37784619,68117.0,68116.0,0.001924]
[1722071249053,1.37484619,68117.0,68116.0,0.001924]
[1722071249489,1.37484619,68117.0,68116.0,0.002924]
[1722071249490,1.38184619,68117.0,68116.0,0.002924]
[1722071250318,1.40488873,68117.0,68116.0,0.002924]
[1722071250959,1.38155315,68117.0,68116.0,0.002924]
[1722071251164,1.67516515,68117.0,68116.0,0.002924]
[1722071251365,1.38155315,68117.0,68116.0,0.002924]
[1722071251973,1.75986515,68117.0,68116.0,0.002924]
[1722071252127,1.46625315,68117.0,68116.0,0.002924]
[1722071253970,1.40405315,68117.0,68116.0,0.002924]
[1722071254216,1.78290769,68117.0,68116.0,0.002924]
[1722071254399,1.75989537,68117.0,68116.0,0.002924]
[1722071254804,1.46628337,68117.0,68116.0,0.002924]
[1722071255798,1.75989537,68117.0,68116.0,0.002924]
[1722071256118,1.027747,68110.0,68109.0,0.078024]
[1722071256320,1.11577489,68110.0,68109.0,0.078024]
[1722071256755,1.13778186,68110.0,68109.0,0.078024]
[1722071257137,1.05517447,68110.0,68109.0,0.078024]
[1722071257344,1.08121727,68110.0,68109.0,0.078024]
[1722071257717,1.08121922,68110.0,68109.0,0.078024]
[1722071258357,1.0537898,68110.0,68109.0,0.078024]
[1722071258561,1.0577898,68110.0,68109.0,0.078024]
[1722071260128,1.16776554,68110.0,68109.0,0.078024]
[1722071260326,1.20899224,68110.0,68109.0,0.078024]
[1722071260569,1.0990165,68110.0,68109.0,0.078024]
[1722071260771,1.20898501,68110.0,68109.0,0.078024]
[1722071261117,1.16775831,68110.0,68109.0,0.078024]
[1722071261362,1.16475833,68110.0,68109.0,0.078024]
[1722071261696,1.0547898,68110.0,68109.0,0.078024]
[1722071261942,1.16475272,68110.0,68109.0,0.078024]
[1722071262235,1.16075272,68110.0,68109.0,0.078024]
[1722071262438,1.19231299,68110.0,68109.0,0.078024]
[1722071262576,1.19731299,68110.0,68109.0,0.078024]
[1722071262776,1.19231299,68110.0,68109.0,0.078024]
[1722071262977,1.19231299,68110.0,68109.0,0.079024]
[1722071262978,1.16775272,68110.0,68109.0,0.079024]
[1722071263498,1.17475272,68110.0,68109.0,0.080024]
[1722071264627,1.17473547,68110.0,68109.0,0.080024]
[1722071266737,1.15169267,68110.0,68109.0,0.080024]
[1722071267409,1.041747,68110.0,68109.0,0.080024]
[1722071268231,1.15168447,68110.0,68109.0,0.080024]
[1722071268795,1.1296976,68110.0,68109.0,0.080024]
[1722071269354,1.041747,68110.0,68109.0,0.080024]
[1722071269925,1.06478985,68110.0,68109.0,0.080024]
[1722071272050,1.17473678,68110.0,68109.0,0.080024]
[1722071272470,1.18351879,68110.0,68109.0,0.080024]
[1722071275035,1.07357186,68110.0,68109.0,0.080024]
[1722071275272,1.16045885,68110.0,68109.0,0.080024]
[1722071277873,1.16045885,68110.0,68109.0,0.002924]
[1722071278527,1.16045038,68110.0,68109.0,0.002924]
[1722071279528,1.22335038,68110.0,68109.0,0.002924]
[1722071281211,1.11342901,68110.0,68109.0,0.002924]
[1722071281571,1.22333323,68110.0,68109.0,0.002924]
[1722071281776,1.16043323,68110.0,68109.0,0.002924]
[1722071282195,1.29875655,68110.0,68109.0,0.002924]
[1722071282413,1.47608425,68110.0,68109.0,0.002924]
[1722071283470,1.31471737,68110.0,68109.0,0.002924]
[1722071284501,1.31512331,68110.0,68109.0,0.002924]
[1722071286788,1.33816712,68110.0,68109.0,0.002924]
[1722071288017,1.33823704,68110.0,68109.0,0.002924]
[1722071290682,1.36127507,68110.0,68109.0,0.002924]
[1722071290951,1.33823126,68110.0,68109.0,0.002924]
[1722071291363,1.31166704,68110.0,68109.0,0.002924]
[1722071291563,1.33831708,68110.0,68109.0,0.002924]
[1722071294905,1.33831677,68110.0,68109.0,0.002924]
[1722071297443,1.20021677,68110.0,68109.0,0.002924]
[1722071298219,1.20021677,68110.0,68109.0,0.081824]
[1722071298493,1.2002187,68110.0,68109.0,0.081824]
[1722071298700,0.92962013,68110.0,68109.0,0.002924]
[1722071298925,0.90296847,68110.0,68109.0,0.143124]
[1722071299125,0.90661201,68110.0,68109.0,0.143124]
[1722071299328,0.89783,68110.0,68109.0,0.143124]
[1722071300916,0.89747003,68110.0,68109.0,0.143124]
[1722071301290,0.163725,68110.0,68109.0,0.143124]
[1722071301493,0.03703803,68110.0,68109.0,0.374647]
[1722071301721,0.014,68110.0,68109.0,0.961939]
[1722071301933,0.03704241,68110.0,68109.0,1.40704538]
[1722071302894,0.007,68110.0,68109.0,1.40604538]
[1722071303182,0.007,68110.0,68109.0,1.41804538]
[1722071303394,0.008,68110.0,68109.0,1.41804538]
[1722071303938,0.008,68110.0,68109.0,1.41704538]
[1722071303939,0.001,68110.0,68109.0,1.41704538]
[1722071304145,0.002,68110.0,68109.0,1.42704538]
[1722071305059,0.02504148,68110.0,68109.0,1.42704538]
[1722071308360,0.02504148,68110.0,68109.0,1.305025]
[1722071311948,0.002,68110.0,68109.0,1.305025]
[1722071315376,0.02504156,68110.0,68109.0,1.305025]
[1722071320007,0.02504156,68110.0,68109.0,1.281985]
[1722071320203,0.002,68110.0,68109.0,1.281985]
[1722071320733,0.002,68110.0,68109.0,0.988339]
[1722071321580,0.002,68110.0,68109.0,0.169524]
[1722071321763,0.002,68110.0,68109.0,0.05144]
[1722071321931,0.002,68110.0,68109.0,0.198263]
[1722071322519,0.002,68110.0,68109.0,0.05144]
[1722071322718,0.002,68110.0,68109.0,0.022]
[1722071323511,0.02504203,68110.0,68109.0,0.022]
[1722071323704,0.02504203,68110.0,68109.0,0.168823]
[1722071323966,0.02504203,68110.0,68109.0,0.022]
[1722071327769,0.17186303,68110.0,68109.0,0.022]
[1722071328126,0.148821,68110.0,68109.0,0.022]
[1722071329133,0.442463,68110.0,68109.0,0.022]
[1722071329341,0.148821,68110.0,68109.0,0.022]
[1722071331405,0.002,68110.0,68109.0,0.022]
[1722071331585,0.02504207,68110.0,68109.0,0.022]
[1722071332120,0.17186307,68110.0,68109.0,0.022]
[1722071333133,0.148821,68110.0,68109.0,0.022]
[1722071333540,0.442463,68110.0,68109.0,0.022]
[1722071336335,0.148821,68110.0,68109.0,0.022]
[1722071336919,0.002,68110.0,68109.0,0.022]
[1722071337692,0.00324702,68110.0,68109.0,0.022]
[1722071337895,0.02504203,68110.0,68109.0,0.022]
[1722071338142,0.002,68110.0,68109.0,0.022]
[1722071338342,0.00337232,68110.0,68109.0,0.022]
[1722071338546,0.148821,68110.0,68109.0,0.022]
[1722071340170,0.17186307,68110.0,68109.0,0.022]
[1722071341339,0.148821,68110.0,68109.0,0.022]
[1722071342774,0.002,68110.0,68109.0,0.022]
[1722071344530,0.17186306,68110.0,68109.0,0.022]
[1722071347251,0.17186306,68110.0,68109.0,0.022924]
[1722071347645,0.25086306,68110.0,68109.0,0.022924]
[1722071348213,0.17186306,68110.0,68109.0,0.022924]
[1722071353089,0.02504206,68110.0,68109.0,0.022924]
[1722071354696,0.002,68110.0,68109.0,0.022924]
[1722071354899,0.0035542,68110.0,68109.0,0.022924]
[1722071355095,0.002,68110.0,68109.0,0.022924]
[1722071355297,0.00316217,68110.0,68109.0,0.022924]
[1722071355501,0.002,68110.0,68109.0,0.022924]
[1722071355711,0.00310958,68110.0,68109.0,0.022924]
[1722071355906,0.002,68110.0,68109.0,0.022924]
[1722071356095,0.00327042,68110.0,68109.0,0.022924]
[1722071356297,0.002,68110.0,68109.0,0.022924]
[1722071359264,0.02504205,68110.0,68109.0,0.022924]
[1722071359756,0.02615719,68110.0,68109.0,0.022924]
[1722071360000,0.02504205,68110.0,68109.0,0.022924]
[1722071360226,0.02634765,68110.0,68109.0,0.022924]
[1722071360459,0.02504205,68110.0,68109.0,0.022924]
[1722071362688,0.02504205,68110.0,68109.0,0.169747]
[1722071364357,0.02504205,68110.0,68109.0,0.022924]
[1722071364506,0.02504205,68110.0,68109.0,0.169747]
[1722071367290,0.002,68110.0,68109.0,0.169747]
[1722071369035,0.002,68110.0,68109.0,0.898239]
[1722071369244,0.002,68110.0,68109.0,1.34334527]
[1722071369456,0.002,68110.0,68109.0,1.79360484]
[1722071369655,0.002,68110.0,68109.0,2.08725084]
[1722071370359,0.002,68110.0,68109.0,1.83725084]
[1722071370743,0.02503866,68110.0,68109.0,1.83725084]
[1722071372217,0.02503866,68110.0,68109.0,1.84623452]
[1722071372417,0.02503866,68110.0,68109.0,2.09623452]
[1722071372630,0.02503866,68110.0,68109.0,1.84623452]
[1722071372825,0.02503866,68110.0,68109.0,1.72421425]
[1722071373059,0.02503866,68110.0,68109.0,1.84620921]
[1722071375125,0.002,68110.0,68109.0,1.84620921]
[1722071375427,0.002,68110.0,68109.0,2.09620921]
[1722071375834,0.002,68110.0,68109.0,1.84620921]
[1722071376035,0.002,68110.0,68109.0,2.09620921]
[1722071376236,0.002,68110.0,68109.0,1.97421425]
[1722071376437,0.002,68110.0,68109.0,2.09620923]
[1722071378215,0.002,68110.0,68109.0,2.09820923]
[1722071378450,0.02503887,68110.0,68109.0,2.09620923]
[1722071379512,0.02503887,68110.0,68109.0,1.84620923]
[1722071379760,0.002,68110.0,68109.0,1.84620923]
[1722071379962,0.002,68110.0,68109.0,1.84620921]
[1722071380493,0.00284,68110.0,68109.0,1.84620921]
[1722071381518,0.00284,68110.0,68109.0,1.72421425]
[1722071381724,0.00284,68110.0,68109.0,1.84620921]
[1722071382668,0.02587912,68110.0,68109.0,1.84620921]
[1722071383496,0.00284,68110.0,68109.0,1.84620921]
[1722071386893,0.02587912,68110.0,68109.0,1.84620921]
[1722071387309,0.00284,68110.0,68109.0,1.84620921]
[1722071388084,0.00284,68110.0,68109.0,1.93090921]
[1722071390085,0.00284,68110.0,68109.0,2.18090921]
[1722071390430,0.00284,68110.0,68109.0,2.18090988]
[1722071390729,0.02587933,68110.0,68109.0,2.18090988]
[1722071391571,0.02587933,68110.0,68109.0,1.93090988]
[1722071391766,0.02587933,68110.0,68109.0,2.18090988]
[1722071393767,0.02587933,68110.0,68109.0,2.05891425]
[1722071393945,0.02587933,68110.0,68109.0,2.18090929]
[1722071395648,0.02587933,68110.0,68109.0,2.20390929]
[1722071396190,0.02587933,68110.0,68109.0,2.49755529]
[1722071396612,0.02587933,68110.0,68109.0,2.67556294]
[1722071396816,0.00284,68110.0,68109.0,2.71954361]
[1722071397222,0.00284,68110.0,68109.0,2.67556294]
[1722071397428,0.00084,68116.0,68115.0,2.169955]
[1722071397631,0.00084,68116.0,68115.0,2.64321726]
[1722071399723,0.00084,68116.0,68115.0,2.65721726]
[1722071400129,0.00084,68116.0,68115.0,2.96483826]
[1722071400330,0.00084,68116.0,68115.0,3.11306471]
[1722071400572,0.00084,68116.0,68115.0,3.06441457]
[1722071400772,0.00084,68116.0,68115.0,3.50001633]
[1722071400977,0.00084,68116.0,68115.0,3.74928517]
[1722071401220,0.00084,68116.0,68115.0,3.90450718]
[1722071401425,0.00084,68116.0,68115.0,3.79463106]
[1722071402133,0.00084,68116.0,68115.0,3.54463106]
[1722071402776,0.00084,68116.0,68115.0,3.48365172]
[1722071402980,0.00084,68116.0,68115.0,2.85840791]
[1722071403199,0.00084,68116.0,68115.0,3.48370813]
[1722071403411,0.00084,68116.0,68115.0,2.88722271]
[1722071403674,0.00084,68116.0,68115.0,2.82164476]
[1722071403918,0.02387526,68116.0,68115.0,2.77629887]
[1722071404116,0.02387526,68116.0,68115.0,2.81277242]
[1722071404325,0.02387526,68116.0,68115.0,2.76884992]
[1722071404526,0.00084,68116.0,68115.0,2.76884992]
[1722071406382,0.00084,68116.0,68115.0,2.7689781]
[1722071406712,0.00084,68116.0,68115.0,2.52682467]
[1722071407122,0.00084,68116.0,68115.0,2.29755756]
[1722071407889,0.02387584,68116.0,68115.0,2.29755756]
[1722071408111,0.00084,68116.0,68115.0,2.29755756]
[1722071409157,0.02387584,68116.0,68115.0,2.29755756]
[1722071409787,0.02387584,68116.0,68115.0,2.52702299]
[1722071409988,0.02387584,68116.0,68115.0,2.52702308]
[1722071410909,0.02387584,68116.0,68115.0,2.29756457]
[1722071411508,0.02387584,68116.0,68115.0,2.29956457]
[1722071411760,0.02387584,68116.0,68115.0,2.29756457]